Workbook

Sheet Aggregated
B1: Num | C1: Volume | D1: Consideration | E1: Av Price | F1: Min | G1: Max
A2: XLON | B2: =COUNTIF('Transaction report'!I:I,$A2) -> 1398 | C2: =SUMIF('Transaction report'!I:I,$A2,'Transaction report'!G:G) -> 1268847 | D2: =SUMIF('Transaction report'!I:I,$A2,'Transaction report'!J:J) -> 4493685.06 | E2: =IF(C2>0,100*D2/C2,"") -> 354.1549974 | F2: =_xlfn.MINIFS('Transaction report'!H:H,'Transaction report'!I:I,$A2) -> 342.6 | G2: =_xlfn.MAXIFS('Transaction report'!H:H,'Transaction report'!I:I,$A2) -> 361
A3: AQXE | B3: =COUNTIF('Transaction report'!I:I,$A3) -> 463 | C3: =SUMIF('Transaction report'!I:I,$A3,'Transaction report'!G:G) -> 313900 | D3: =SUMIF('Transaction report'!I:I,$A3,'Transaction report'!J:J) -> 1110852.092 | E3: =IF(C3>0,100*D3/C3,"") -> 353.8872545 | F3: =_xlfn.MINIFS('Transaction report'!H:H,'Transaction report'!I:I,$A3) -> 343.2 | G3: =_xlfn.MAXIFS('Transaction report'!H:H,'Transaction report'!I:I,$A3) -> 360.8
A4: BATE | B4: =COUNTIF('Transaction report'!I:I,$A4) -> 764 | C4: =SUMIF('Transaction report'!I:I,$A4,'Transaction report'!G:G) -> 635031 | D4: =SUMIF('Transaction report'!I:I,$A4,'Transaction report'!J:J) -> 2248976.699 | E4: 354.1522696 | F4: =_xlfn.MINIFS('Transaction report'!H:H,'Transaction report'!I:I,$A4) -> 343.1 | G4: =_xlfn.MAXIFS('Transaction report'!H:H,'Transaction report'!I:I,$A4) -> 360.8
A5: CHIX | B5: =COUNTIF('Transaction report'!I:I,$A5) -> 1066 | C5: =SUMIF('Transaction report'!I:I,$A5,'Transaction report'!G:G) -> 1043940 | D5: =SUMIF('Transaction report'!I:I,$A5,'Transaction report'!J:J) -> 3695568.227 | E5: 354.0019759 | F5: =_xlfn.MINIFS('Transaction report'!H:H,'Transaction report'!I:I,$A5) -> 342.6 | G5: =_xlfn.MAXIFS('Transaction report'!H:H,'Transaction report'!I:I,$A5) -> 360.8
A6: TRQX | B6: =COUNTIF('Transaction report'!I:I,$A6) -> 750 | C6: =SUMIF('Transaction report'!I:I,$A6,'Transaction report'!G:G) -> 599698 | D6: =SUMIF('Transaction report'!I:I,$A6,'Transaction report'!J:J) -> 2121468.877 | E6: 353.7562035 | F6: =_xlfn.MINIFS('Transaction report'!H:H,'Transaction report'!I:I,$A6) -> 343.1 | G6: =_xlfn.MAXIFS('Transaction report'!H:H,'Transaction report'!I:I,$A6) -> 360.8
A7: Other | B7: =B8-SUM(B2:B6) -> 0 | C7: =C8-SUM(C2:C6) -> 0 | D7: =D8-SUM(D2:D6) -> 2.607703209e-08 | F7: =IFERROR(MIN(_xlfn._xlws.FILTER('Transaction report'!H:H,ISNA(MATCH('Transaction report'!I:I,$A$2:$A$6,0)))),"") -> 0 | G7: =IFERROR(MAX(_xlfn._xlws.FILTER('Transaction report'!H:H,ISNA(MATCH('Transaction report'!I:I,$A$2:$A$6,0)))),"") -> 0
A8: Total | B8: =COUNT('Transaction report'!G:G) -> 4441 | C8: =SUM('Transaction report'!G:G) -> 3861416 | D8: =SUM('Transaction report'!J:J) -> 13670550.96 | E8: 354.0294792 | F8: =MIN('Transaction report'!H:H) -> 342.6 | G8: =MAX('Transaction report'!H:H) -> 361

Sheet Transaction report
A1: Issuer name | B1: ISIN | C1: Name of Investment Services Provider | D1: Intermediary Code | E1: Order Id | F1: Instrument | G1: Fill Volume | H1: Gross price in instrument currency | I1: Execution Venue | J1: Gross consideration | K1: Traded on | L1: Trade Id
A2: J SAINSBURY PLC | B2: GB00B019KW72 | C2: Shore Capital Stockbrokers Limited | D2: 2138009KZO3MK7TV6372 | E2: 00026980363ORLO1 | F2: SBRY.L | G2: 199 | H2: 358.1 | I2: AQXE | J2: 712.619 | K2: 20260717 08:00:33.923000 +0100s | L2: 00050318155TRLO1
A3: J SAINSBURY PLC | B3: GB00B019KW72 | C3: Shore Capital Stockbrokers Limited | D3: 2138009KZO3MK7TV6372 | E3: 00026980363ORLO1 | F3: SBRY.L | G3: 2231 | H3: 357.5 | I3: XLON | J3: 7975.825 | K3: 20260717 08:01:23.805000 +0100s | L3: 00050318226TRLO1
A4: J SAINSBURY PLC | B4: GB00B019KW72 | C4: Shore Capital Stockbrokers Limited | D4: 2138009KZO3MK7TV6372 | E4: 00026980363ORLO1 | F4: SBRY.L | G4: 790 | H4: 357.5 | I4: AQXE | J4: 2824.25 | K4: 20260717 08:01:23.805000 +0100s | L4: 00050318227TRLO1
A5: J SAINSBURY PLC | B5: GB00B019KW72 | C5: Shore Capital Stockbrokers Limited | D5: 2138009KZO3MK7TV6372 | E5: 00026980363ORLO1 | F5: SBRY.L | G5: 395 | H5: 357.5 | I5: CHIX | J5: 1412.125 | K5: 20260717 08:02:26.533000 +0100s | L5: 00050318294TRLO1
A6: J SAINSBURY PLC | B6: GB00B019KW72 | C6: Shore Capital Stockbrokers Limited | D6: 2138009KZO3MK7TV6372 | E6: 00026980363ORLO1 | F6: SBRY.L | G6: 812 | H6: 358.2 | I6: CHIX | J6: 2908.584 | K6: 20260717 08:05:01.850000 +0100s | L6: 00050318467TRLO1
A7: J SAINSBURY PLC | B7: GB00B019KW72 | C7: Shore Capital Stockbrokers Limited | D7: 2138009KZO3MK7TV6372 | E7: 00026980363ORLO1 | F7: SBRY.L | G7: 366 | H7: 358 | I7: XLON | J7: 1310.28 | K7: 20260717 08:05:53.079000 +0100s | L7: 00050318519TRLO1
A8: J SAINSBURY PLC | B8: GB00B019KW72 | C8: Shore Capital Stockbrokers Limited | D8: 2138009KZO3MK7TV6372 | E8: 00026980363ORLO1 | F8: SBRY.L | G8: 457 | H8: 358 | I8: XLON | J8: 1636.06 | K8: 20260717 08:05:53.079000 +0100s | L8: 00050318520TRLO1
A9: J SAINSBURY PLC | B9: GB00B019KW72 | C9: Shore Capital Stockbrokers Limited | D9: 2138009KZO3MK7TV6372 | E9: 00026980363ORLO1 | F9: SBRY.L | G9: 683 | H9: 358.7 | I9: AQXE | J9: 2449.921 | K9: 20260717 08:06:17.358000 +0100s | L9: 00050318556TRLO1
A10: J SAINSBURY PLC | B10: GB00B019KW72 | C10: Shore Capital Stockbrokers Limited | D10: 2138009KZO3MK7TV6372 | E10: 00026980363ORLO1 | F10: SBRY.L | G10: 416 | H10: 358.7 | I10: AQXE | J10: 1492.192 | K10: 20260717 08:06:17.358000 +0100s | L10: 00050318557TRLO1
A11: J SAINSBURY PLC | B11: GB00B019KW72 | C11: Shore Capital Stockbrokers Limited | D11: 2138009KZO3MK7TV6372 | E11: 00026980363ORLO1 | F11: SBRY.L | G11: 1341 | H11: 358.7 | I11: AQXE | J11: 4810.167 | K11: 20260717 08:06:51.310000 +0100s | L11: 00050318582TRLO1
A12: J SAINSBURY PLC | B12: GB00B019KW72 | C12: Shore Capital Stockbrokers Limited | D12: 2138009KZO3MK7TV6372 | E12: 00026980363ORLO1 | F12: SBRY.L | G12: 430 | H12: 359.1 | I12: XLON | J12: 1544.13 | K12: 20260717 08:07:35.361000 +0100s | L12: 00050318609TRLO1
A13: J SAINSBURY PLC | B13: GB00B019KW72 | C13: Shore Capital Stockbrokers Limited | D13: 2138009KZO3MK7TV6372 | E13: 00026980363ORLO1 | F13: SBRY.L | G13: 536 | H13: 359.1 | I13: AQXE | J13: 1924.776 | K13: 20260717 08:07:35.361000 +0100s | L13: 00050318610TRLO1
A14: J SAINSBURY PLC | B14: GB00B019KW72 | C14: Shore Capital Stockbrokers Limited | D14: 2138009KZO3MK7TV6372 | E14: 00026980363ORLO1 | F14: SBRY.L | G14: 718 | H14: 359.1 | I14: AQXE | J14: 2578.338 | K14: 20260717 08:07:35.361000 +0100s | L14: 00050318611TRLO1
A15: J SAINSBURY PLC | B15: GB00B019KW72 | C15: Shore Capital Stockbrokers Limited | D15: 2138009KZO3MK7TV6372 | E15: 00026980363ORLO1 | F15: SBRY.L | G15: 918 | H15: 358.9 | I15: AQXE | J15: 3294.702 | K15: 20260717 08:07:39.893000 +0100s | L15: 00050318614TRLO1
A16: J SAINSBURY PLC | B16: GB00B019KW72 | C16: Shore Capital Stockbrokers Limited | D16: 2138009KZO3MK7TV6372 | E16: 00026980363ORLO1 | F16: SBRY.L | G16: 790 | H16: 358.9 | I16: BATE | J16: 2835.31 | K16: 20260717 08:07:39.893000 +0100s | L16: 00050318615TRLO1
A17: J SAINSBURY PLC | B17: GB00B019KW72 | C17: Shore Capital Stockbrokers Limited | D17: 2138009KZO3MK7TV6372 | E17: 00026980363ORLO1 | F17: SBRY.L | G17: 1580 | H17: 358.9 | I17: XLON | J17: 5670.62 | K17: 20260717 08:07:39.893000 +0100s | L17: 00050318616TRLO1
A18: J SAINSBURY PLC | B18: GB00B019KW72 | C18: Shore Capital Stockbrokers Limited | D18: 2138009KZO3MK7TV6372 | E18: 00026980363ORLO1 | F18: SBRY.L | G18: 1008 | H18: 358.9 | I18: TRQX | J18: 3617.712 | K18: 20260717 08:07:39.895000 +0100s | L18: 00050318617TRLO1
A19: J SAINSBURY PLC | B19: GB00B019KW72 | C19: Shore Capital Stockbrokers Limited | D19: 2138009KZO3MK7TV6372 | E19: 00026980363ORLO1 | F19: SBRY.L | G19: 790 | H19: 358.8 | I19: CHIX | J19: 2834.52 | K19: 20260717 08:07:39.895000 +0100s | L19: 00050318618TRLO1
A20: J SAINSBURY PLC | B20: GB00B019KW72 | C20: Shore Capital Stockbrokers Limited | D20: 2138009KZO3MK7TV6372 | E20: 00026980363ORLO1 | F20: SBRY.L | G20: 659 | H20: 358.9 | I20: AQXE | J20: 2365.151 | K20: 20260717 08:07:39.895000 +0100s | L20: 00050318619TRLO1
A21: J SAINSBURY PLC | B21: GB00B019KW72 | C21: Shore Capital Stockbrokers Limited | D21: 2138009KZO3MK7TV6372 | E21: 00026980363ORLO1 | F21: SBRY.L | G21: 131 | H21: 358.9 | I21: AQXE | J21: 470.159 | K21: 20260717 08:07:39.895000 +0100s | L21: 00050318620TRLO1
A22: J SAINSBURY PLC | B22: GB00B019KW72 | C22: Shore Capital Stockbrokers Limited | D22: 2138009KZO3MK7TV6372 | E22: 00026980363ORLO1 | F22: SBRY.L | G22: 790 | H22: 358.4 | I22: XLON | J22: 2831.36 | K22: 20260717 08:07:59.638000 +0100s | L22: 00050318631TRLO1
A23: J SAINSBURY PLC | B23: GB00B019KW72 | C23: Shore Capital Stockbrokers Limited | D23: 2138009KZO3MK7TV6372 | E23: 00026980363ORLO1 | F23: SBRY.L | G23: 790 | H23: 358.4 | I23: TRQX | J23: 2831.36 | K23: 20260717 08:07:59.638000 +0100s | L23: 00050318632TRLO1
A24: J SAINSBURY PLC | B24: GB00B019KW72 | C24: Shore Capital Stockbrokers Limited | D24: 2138009KZO3MK7TV6372 | E24: 00026980363ORLO1 | F24: SBRY.L | G24: 790 | H24: 358.4 | I24: BATE | J24: 2831.36 | K24: 20260717 08:07:59.638000 +0100s | L24: 00050318633TRLO1
A25: J SAINSBURY PLC | B25: GB00B019KW72 | C25: Shore Capital Stockbrokers Limited | D25: 2138009KZO3MK7TV6372 | E25: 00026980363ORLO1 | F25: SBRY.L | G25: 2596 | H25: 358.4 | I25: CHIX | J25: 9304.064 | K25: 20260717 08:07:59.638000 +0100s | L25: 00050318634TRLO1
A26: J SAINSBURY PLC | B26: GB00B019KW72 | C26: Shore Capital Stockbrokers Limited | D26: 2138009KZO3MK7TV6372 | E26: 00026980363ORLO1 | F26: SBRY.L | G26: 1211 | H26: 358.4 | I26: XLON | J26: 4340.224 | K26: 20260717 08:07:59.641000 +0100s | L26: 00050318635TRLO1
A27: J SAINSBURY PLC | B27: GB00B019KW72 | C27: Shore Capital Stockbrokers Limited | D27: 2138009KZO3MK7TV6372 | E27: 00026980363ORLO1 | F27: SBRY.L | G27: 790 | H27: 358.7 | I27: AQXE | J27: 2833.73 | K27: 20260717 08:14:52.459000 +0100s | L27: 00050318908TRLO1
A28: J SAINSBURY PLC | B28: GB00B019KW72 | C28: Shore Capital Stockbrokers Limited | D28: 2138009KZO3MK7TV6372 | E28: 00026980363ORLO1 | F28: SBRY.L | G28: 790 | H28: 358.7 | I28: BATE | J28: 2833.73 | K28: 20260717 08:14:52.459000 +0100s | L28: 00050318909TRLO1
A29: J SAINSBURY PLC | B29: GB00B019KW72 | C29: Shore Capital Stockbrokers Limited | D29: 2138009KZO3MK7TV6372 | E29: 00026980363ORLO1 | F29: SBRY.L | G29: 1675 | H29: 358.7 | I29: XLON | J29: 6008.225 | K29: 20260717 08:14:52.459000 +0100s | L29: 00050318910TRLO1
A30: J SAINSBURY PLC | B30: GB00B019KW72 | C30: Shore Capital Stockbrokers Limited | D30: 2138009KZO3MK7TV6372 | E30: 00026980363ORLO1 | F30: SBRY.L | G30: 2632 | H30: 358.7 | I30: XLON | J30: 9440.984 | K30: 20260717 08:14:52.461000 +0100s | L30: 00050318911TRLO1
A31: J SAINSBURY PLC | B31: GB00B019KW72 | C31: Shore Capital Stockbrokers Limited | D31: 2138009KZO3MK7TV6372 | E31: 00026980363ORLO1 | F31: SBRY.L | G31: 790 | H31: 358.7 | I31: CHIX | J31: 2833.73 | K31: 20260717 08:14:52.462000 +0100s | L31: 00050318912TRLO1
A32: J SAINSBURY PLC | B32: GB00B019KW72 | C32: Shore Capital Stockbrokers Limited | D32: 2138009KZO3MK7TV6372 | E32: 00026980363ORLO1 | F32: SBRY.L | G32: 790 | H32: 358.7 | I32: AQXE | J32: 2833.73 | K32: 20260717 08:14:52.462000 +0100s | L32: 00050318913TRLO1
A33: J SAINSBURY PLC | B33: GB00B019KW72 | C33: Shore Capital Stockbrokers Limited | D33: 2138009KZO3MK7TV6372 | E33: 00026980363ORLO1 | F33: SBRY.L | G33: 1580 | H33: 358.6 | I33: CHIX | J33: 5665.88 | K33: 20260717 08:14:52.462000 +0100s | L33: 00050318914TRLO1
A34: J SAINSBURY PLC | B34: GB00B019KW72 | C34: Shore Capital Stockbrokers Limited | D34: 2138009KZO3MK7TV6372 | E34: 00026980363ORLO1 | F34: SBRY.L | G34: 1839 | H34: 358.6 | I34: BATE | J34: 6594.654 | K34: 20260717 08:14:52.462000 +0100s | L34: 00050318915TRLO1
A35: J SAINSBURY PLC | B35: GB00B019KW72 | C35: Shore Capital Stockbrokers Limited | D35: 2138009KZO3MK7TV6372 | E35: 00026980363ORLO1 | F35: SBRY.L | G35: 790 | H35: 358.6 | I35: AQXE | J35: 2832.94 | K35: 20260717 08:14:52.462000 +0100s | L35: 00050318916TRLO1
A36: J SAINSBURY PLC | B36: GB00B019KW72 | C36: Shore Capital Stockbrokers Limited | D36: 2138009KZO3MK7TV6372 | E36: 00026980363ORLO1 | F36: SBRY.L | G36: 567 | H36: 358.7 | I36: XLON | J36: 2033.829 | K36: 20260717 08:14:52.463000 +0100s | L36: 00050318917TRLO1
A37: J SAINSBURY PLC | B37: GB00B019KW72 | C37: Shore Capital Stockbrokers Limited | D37: 2138009KZO3MK7TV6372 | E37: 00026980363ORLO1 | F37: SBRY.L | G37: 1392 | H37: 358.7 | I37: TRQX | J37: 4993.104 | K37: 20260717 08:15:26.583000 +0100s | L37: 00050318938TRLO1
A38: J SAINSBURY PLC | B38: GB00B019KW72 | C38: Shore Capital Stockbrokers Limited | D38: 2138009KZO3MK7TV6372 | E38: 00026980363ORLO1 | F38: SBRY.L | G38: 790 | H38: 358.7 | I38: CHIX | J38: 2833.73 | K38: 20260717 08:15:26.583000 +0100s | L38: 00050318939TRLO1
A39: J SAINSBURY PLC | B39: GB00B019KW72 | C39: Shore Capital Stockbrokers Limited | D39: 2138009KZO3MK7TV6372 | E39: 00026980363ORLO1 | F39: SBRY.L | G39: 606 | H39: 358.6 | I39: XLON | J39: 2173.116 | K39: 20260717 08:15:40.631000 +0100s | L39: 00050318950TRLO1
A40: J SAINSBURY PLC | B40: GB00B019KW72 | C40: Shore Capital Stockbrokers Limited | D40: 2138009KZO3MK7TV6372 | E40: 00026980363ORLO1 | F40: SBRY.L | G40: 1015 | H40: 358.8 | I40: XLON | J40: 3641.82 | K40: 20260717 08:19:06.731000 +0100s | L40: 00050319100TRLO1
A41: J SAINSBURY PLC | B41: GB00B019KW72 | C41: Shore Capital Stockbrokers Limited | D41: 2138009KZO3MK7TV6372 | E41: 00026980363ORLO1 | F41: SBRY.L | G41: 790 | H41: 358.8 | I41: CHIX | J41: 2834.52 | K41: 20260717 08:20:42.950000 +0100s | L41: 00050319176TRLO1
A42: J SAINSBURY PLC | B42: GB00B019KW72 | C42: Shore Capital Stockbrokers Limited | D42: 2138009KZO3MK7TV6372 | E42: 00026980363ORLO1 | F42: SBRY.L | G42: 1364 | H42: 359 | I42: XLON | J42: 4896.76 | K42: 20260717 08:24:14.767000 +0100s | L42: 00050319296TRLO1
A43: J SAINSBURY PLC | B43: GB00B019KW72 | C43: Shore Capital Stockbrokers Limited | D43: 2138009KZO3MK7TV6372 | E43: 00026980363ORLO1 | F43: SBRY.L | G43: 413 | H43: 359 | I43: XLON | J43: 1482.67 | K43: 20260717 08:24:14.767000 +0100s | L43: 00050319297TRLO1
A44: J SAINSBURY PLC | B44: GB00B019KW72 | C44: Shore Capital Stockbrokers Limited | D44: 2138009KZO3MK7TV6372 | E44: 00026980363ORLO1 | F44: SBRY.L | G44: 790 | H44: 359 | I44: CHIX | J44: 2836.1 | K44: 20260717 08:25:49.349000 +0100s | L44: 00050319378TRLO1
A45: J SAINSBURY PLC | B45: GB00B019KW72 | C45: Shore Capital Stockbrokers Limited | D45: 2138009KZO3MK7TV6372 | E45: 00026980363ORLO1 | F45: SBRY.L | G45: 1006 | H45: 359 | I45: TRQX | J45: 3611.54 | K45: 20260717 08:25:49.349000 +0100s | L45: 00050319379TRLO1
A46: J SAINSBURY PLC | B46: GB00B019KW72 | C46: Shore Capital Stockbrokers Limited | D46: 2138009KZO3MK7TV6372 | E46: 00026980363ORLO1 | F46: SBRY.L | G46: 96 | H46: 358.9 | I46: CHIX | J46: 344.544 | K46: 20260717 08:26:33.897000 +0100s | L46: 00050319411TRLO1
A47: J SAINSBURY PLC | B47: GB00B019KW72 | C47: Shore Capital Stockbrokers Limited | D47: 2138009KZO3MK7TV6372 | E47: 00026980363ORLO1 | F47: SBRY.L | G47: 790 | H47: 358.9 | I47: BATE | J47: 2835.31 | K47: 20260717 08:26:33.897000 +0100s | L47: 00050319412TRLO1
A48: J SAINSBURY PLC | B48: GB00B019KW72 | C48: Shore Capital Stockbrokers Limited | D48: 2138009KZO3MK7TV6372 | E48: 00026980363ORLO1 | F48: SBRY.L | G48: 1297 | H48: 358.9 | I48: CHIX | J48: 4654.933 | K48: 20260717 08:26:33.897000 +0100s | L48: 00050319413TRLO1
A49: J SAINSBURY PLC | B49: GB00B019KW72 | C49: Shore Capital Stockbrokers Limited | D49: 2138009KZO3MK7TV6372 | E49: 00026980363ORLO1 | F49: SBRY.L | G49: 790 | H49: 358.8 | I49: BATE | J49: 2834.52 | K49: 20260717 08:26:52.582000 +0100s | L49: 00050319425TRLO1
A50: J SAINSBURY PLC | B50: GB00B019KW72 | C50: Shore Capital Stockbrokers Limited | D50: 2138009KZO3MK7TV6372 | E50: 00026980363ORLO1 | F50: SBRY.L | G50: 790 | H50: 358.8 | I50: TRQX | J50: 2834.52 | K50: 20260717 08:26:52.582000 +0100s | L50: 00050319426TRLO1
A51: J SAINSBURY PLC | B51: GB00B019KW72 | C51: Shore Capital Stockbrokers Limited | D51: 2138009KZO3MK7TV6372 | E51: 00026980363ORLO1 | F51: SBRY.L | G51: 1014 | H51: 358.8 | I51: AQXE | J51: 3638.232 | K51: 20260717 08:26:52.582000 +0100s | L51: 00050319427TRLO1
A52: J SAINSBURY PLC | B52: GB00B019KW72 | C52: Shore Capital Stockbrokers Limited | D52: 2138009KZO3MK7TV6372 | E52: 00026980363ORLO1 | F52: SBRY.L | G52: 942 | H52: 358.8 | I52: CHIX | J52: 3379.896 | K52: 20260717 08:26:52.582000 +0100s | L52: 00050319428TRLO1
A53: J SAINSBURY PLC | B53: GB00B019KW72 | C53: Shore Capital Stockbrokers Limited | D53: 2138009KZO3MK7TV6372 | E53: 00026980363ORLO1 | F53: SBRY.L | G53: 790 | H53: 358.8 | I53: CHIX | J53: 2834.52 | K53: 20260717 08:27:47.752000 +0100s | L53: 00050319498TRLO1
A54: J SAINSBURY PLC | B54: GB00B019KW72 | C54: Shore Capital Stockbrokers Limited | D54: 2138009KZO3MK7TV6372 | E54: 00026980363ORLO1 | F54: SBRY.L | G54: 981 | H54: 358.8 | I54: TRQX | J54: 3519.828 | K54: 20260717 08:27:47.752000 +0100s | L54: 00050319499TRLO1
A55: J SAINSBURY PLC | B55: GB00B019KW72 | C55: Shore Capital Stockbrokers Limited | D55: 2138009KZO3MK7TV6372 | E55: 00026980363ORLO1 | F55: SBRY.L | G55: 1698 | H55: 358.7 | I55: AQXE | J55: 6090.726 | K55: 20260717 08:27:49.163000 +0100s | L55: 00050319500TRLO1
A56: J SAINSBURY PLC | B56: GB00B019KW72 | C56: Shore Capital Stockbrokers Limited | D56: 2138009KZO3MK7TV6372 | E56: 00026980363ORLO1 | F56: SBRY.L | G56: 1042 | H56: 358.7 | I56: TRQX | J56: 3737.654 | K56: 20260717 08:27:49.163000 +0100s | L56: 00050319501TRLO1
A57: J SAINSBURY PLC | B57: GB00B019KW72 | C57: Shore Capital Stockbrokers Limited | D57: 2138009KZO3MK7TV6372 | E57: 00026980363ORLO1 | F57: SBRY.L | G57: 790 | H57: 358.7 | I57: CHIX | J57: 2833.73 | K57: 20260717 08:27:49.163000 +0100s | L57: 00050319502TRLO1
A58: J SAINSBURY PLC | B58: GB00B019KW72 | C58: Shore Capital Stockbrokers Limited | D58: 2138009KZO3MK7TV6372 | E58: 00026980363ORLO1 | F58: SBRY.L | G58: 304 | H58: 358.7 | I58: TRQX | J58: 1090.448 | K58: 20260717 08:27:49.163000 +0100s | L58: 00050319503TRLO1
A59: J SAINSBURY PLC | B59: GB00B019KW72 | C59: Shore Capital Stockbrokers Limited | D59: 2138009KZO3MK7TV6372 | E59: 00026980363ORLO1 | F59: SBRY.L | G59: 790 | H59: 358.7 | I59: BATE | J59: 2833.73 | K59: 20260717 08:27:49.163000 +0100s | L59: 00050319504TRLO1
A60: J SAINSBURY PLC | B60: GB00B019KW72 | C60: Shore Capital Stockbrokers Limited | D60: 2138009KZO3MK7TV6372 | E60: 00026980363ORLO1 | F60: SBRY.L | G60: 1014 | H60: 358.7 | I60: XLON | J60: 3637.218 | K60: 20260717 08:27:49.163000 +0100s | L60: 00050319505TRLO1
A61: J SAINSBURY PLC | B61: GB00B019KW72 | C61: Shore Capital Stockbrokers Limited | D61: 2138009KZO3MK7TV6372 | E61: 00026980363ORLO1 | F61: SBRY.L | G61: 968 | H61: 358.1 | I61: AQXE | J61: 3466.408 | K61: 20260717 08:33:15.337000 +0100s | L61: 00050319742TRLO1
A62: J SAINSBURY PLC | B62: GB00B019KW72 | C62: Shore Capital Stockbrokers Limited | D62: 2138009KZO3MK7TV6372 | E62: 00026980363ORLO1 | F62: SBRY.L | G62: 790 | H62: 358.1 | I62: CHIX | J62: 2828.99 | K62: 20260717 08:33:15.337000 +0100s | L62: 00050319743TRLO1
A63: J SAINSBURY PLC | B63: GB00B019KW72 | C63: Shore Capital Stockbrokers Limited | D63: 2138009KZO3MK7TV6372 | E63: 00026980363ORLO1 | F63: SBRY.L | G63: 968 | H63: 358.1 | I63: BATE | J63: 3466.408 | K63: 20260717 08:33:15.337000 +0100s | L63: 00050319744TRLO1
A64: J SAINSBURY PLC | B64: GB00B019KW72 | C64: Shore Capital Stockbrokers Limited | D64: 2138009KZO3MK7TV6372 | E64: 00026980363ORLO1 | F64: SBRY.L | G64: 790 | H64: 358.1 | I64: CHIX | J64: 2828.99 | K64: 20260717 08:33:15.337000 +0100s | L64: 00050319745TRLO1
A65: J SAINSBURY PLC | B65: GB00B019KW72 | C65: Shore Capital Stockbrokers Limited | D65: 2138009KZO3MK7TV6372 | E65: 00026980363ORLO1 | F65: SBRY.L | G65: 790 | H65: 358 | I65: BATE | J65: 2828.2 | K65: 20260717 08:33:15.338000 +0100s | L65: 00050319746TRLO1
A66: J SAINSBURY PLC | B66: GB00B019KW72 | C66: Shore Capital Stockbrokers Limited | D66: 2138009KZO3MK7TV6372 | E66: 00026980363ORLO1 | F66: SBRY.L | G66: 2047 | H66: 358 | I66: XLON | J66: 7328.26 | K66: 20260717 08:33:15.338000 +0100s | L66: 00050319747TRLO1
A67: J SAINSBURY PLC | B67: GB00B019KW72 | C67: Shore Capital Stockbrokers Limited | D67: 2138009KZO3MK7TV6372 | E67: 00026980363ORLO1 | F67: SBRY.L | G67: 144 | H67: 357.7 | I67: BATE | J67: 515.088 | K67: 20260717 08:34:32.756000 +0100s | L67: 00050319807TRLO1
A68: J SAINSBURY PLC | B68: GB00B019KW72 | C68: Shore Capital Stockbrokers Limited | D68: 2138009KZO3MK7TV6372 | E68: 00026980363ORLO1 | F68: SBRY.L | G68: 192 | H68: 357.7 | I68: BATE | J68: 686.784 | K68: 20260717 08:34:32.757000 +0100s | L68: 00050319808TRLO1
A69: J SAINSBURY PLC | B69: GB00B019KW72 | C69: Shore Capital Stockbrokers Limited | D69: 2138009KZO3MK7TV6372 | E69: 00026980363ORLO1 | F69: SBRY.L | G69: 454 | H69: 357.7 | I69: BATE | J69: 1623.958 | K69: 20260717 08:36:08.156000 +0100s | L69: 00050319881TRLO1
A70: J SAINSBURY PLC | B70: GB00B019KW72 | C70: Shore Capital Stockbrokers Limited | D70: 2138009KZO3MK7TV6372 | E70: 00026980363ORLO1 | F70: SBRY.L | G70: 441 | H70: 357.7 | I70: CHIX | J70: 1577.457 | K70: 20260717 08:36:08.166000 +0100s | L70: 00050319882TRLO1
A71: J SAINSBURY PLC | B71: GB00B019KW72 | C71: Shore Capital Stockbrokers Limited | D71: 2138009KZO3MK7TV6372 | E71: 00026980363ORLO1 | F71: SBRY.L | G71: 756 | H71: 357.7 | I71: CHIX | J71: 2704.212 | K71: 20260717 08:36:08.166000 +0100s | L71: 00050319883TRLO1
A72: J SAINSBURY PLC | B72: GB00B019KW72 | C72: Shore Capital Stockbrokers Limited | D72: 2138009KZO3MK7TV6372 | E72: 00026980363ORLO1 | F72: SBRY.L | G72: 112 | H72: 357.7 | I72: CHIX | J72: 400.624 | K72: 20260717 08:36:08.167000 +0100s | L72: 00050319884TRLO1
A73: J SAINSBURY PLC | B73: GB00B019KW72 | C73: Shore Capital Stockbrokers Limited | D73: 2138009KZO3MK7TV6372 | E73: 00026980363ORLO1 | F73: SBRY.L | G73: 410 | H73: 358.9 | I73: XLON | J73: 1471.49 | K73: 20260717 08:40:42.599000 +0100s | L73: 00050320055TRLO1
A74: J SAINSBURY PLC | B74: GB00B019KW72 | C74: Shore Capital Stockbrokers Limited | D74: 2138009KZO3MK7TV6372 | E74: 00026980363ORLO1 | F74: SBRY.L | G74: 571 | H74: 358.9 | I74: XLON | J74: 2049.319 | K74: 20260717 08:40:42.599000 +0100s | L74: 00050320056TRLO1
A75: J SAINSBURY PLC | B75: GB00B019KW72 | C75: Shore Capital Stockbrokers Limited | D75: 2138009KZO3MK7TV6372 | E75: 00026980363ORLO1 | F75: SBRY.L | G75: 118 | H75: 358.9 | I75: CHIX | J75: 423.502 | K75: 20260717 08:40:42.599000 +0100s | L75: 00050320057TRLO1
A76: J SAINSBURY PLC | B76: GB00B019KW72 | C76: Shore Capital Stockbrokers Limited | D76: 2138009KZO3MK7TV6372 | E76: 00026980363ORLO1 | F76: SBRY.L | G76: 2434 | H76: 358.7 | I76: CHIX | J76: 8730.758 | K76: 20260717 08:41:26.367000 +0100s | L76: 00050320086TRLO1
A77: J SAINSBURY PLC | B77: GB00B019KW72 | C77: Shore Capital Stockbrokers Limited | D77: 2138009KZO3MK7TV6372 | E77: 00026980363ORLO1 | F77: SBRY.L | G77: 790 | H77: 358.7 | I77: BATE | J77: 2833.73 | K77: 20260717 08:41:26.367000 +0100s | L77: 00050320087TRLO1
A78: J SAINSBURY PLC | B78: GB00B019KW72 | C78: Shore Capital Stockbrokers Limited | D78: 2138009KZO3MK7TV6372 | E78: 00026980363ORLO1 | F78: SBRY.L | G78: 790 | H78: 358.7 | I78: TRQX | J78: 2833.73 | K78: 20260717 08:41:26.367000 +0100s | L78: 00050320088TRLO1
A79: J SAINSBURY PLC | B79: GB00B019KW72 | C79: Shore Capital Stockbrokers Limited | D79: 2138009KZO3MK7TV6372 | E79: 00026980363ORLO1 | F79: SBRY.L | G79: 270 | H79: 358.7 | I79: XLON | J79: 968.49 | K79: 20260717 08:41:26.369000 +0100s | L79: 00050320089TRLO1
A80: J SAINSBURY PLC | B80: GB00B019KW72 | C80: Shore Capital Stockbrokers Limited | D80: 2138009KZO3MK7TV6372 | E80: 00026980363ORLO1 | F80: SBRY.L | G80: 737 | H80: 358.7 | I80: XLON | J80: 2643.619 | K80: 20260717 08:41:26.369000 +0100s | L80: 00050320090TRLO1
A81: J SAINSBURY PLC | B81: GB00B019KW72 | C81: Shore Capital Stockbrokers Limited | D81: 2138009KZO3MK7TV6372 | E81: 00026980363ORLO1 | F81: SBRY.L | G81: 1698 | H81: 358.7 | I81: XLON | J81: 6090.726 | K81: 20260717 08:41:26.369000 +0100s | L81: 00050320091TRLO1
A82: J SAINSBURY PLC | B82: GB00B019KW72 | C82: Shore Capital Stockbrokers Limited | D82: 2138009KZO3MK7TV6372 | E82: 00026980363ORLO1 | F82: SBRY.L | G82: 790 | H82: 358.7 | I82: CHIX | J82: 2833.73 | K82: 20260717 08:41:26.369000 +0100s | L82: 00050320092TRLO1
A83: J SAINSBURY PLC | B83: GB00B019KW72 | C83: Shore Capital Stockbrokers Limited | D83: 2138009KZO3MK7TV6372 | E83: 00026980363ORLO1 | F83: SBRY.L | G83: 1270 | H83: 358.7 | I83: XLON | J83: 4555.49 | K83: 20260717 08:41:26.370000 +0100s | L83: 00050320093TRLO1
A84: J SAINSBURY PLC | B84: GB00B019KW72 | C84: Shore Capital Stockbrokers Limited | D84: 2138009KZO3MK7TV6372 | E84: 00026980363ORLO1 | F84: SBRY.L | G84: 790 | H84: 358.6 | I84: AQXE | J84: 2832.94 | K84: 20260717 08:41:26.395000 +0100s | L84: 00050320094TRLO1
A85: J SAINSBURY PLC | B85: GB00B019KW72 | C85: Shore Capital Stockbrokers Limited | D85: 2138009KZO3MK7TV6372 | E85: 00026980363ORLO1 | F85: SBRY.L | G85: 1580 | H85: 358.6 | I85: TRQX | J85: 5665.88 | K85: 20260717 08:41:26.395000 +0100s | L85: 00050320095TRLO1
A86: J SAINSBURY PLC | B86: GB00B019KW72 | C86: Shore Capital Stockbrokers Limited | D86: 2138009KZO3MK7TV6372 | E86: 00026980363ORLO1 | F86: SBRY.L | G86: 1826 | H86: 358.6 | I86: CHIX | J86: 6548.036 | K86: 20260717 08:41:26.395000 +0100s | L86: 00050320096TRLO1
A87: J SAINSBURY PLC | B87: GB00B019KW72 | C87: Shore Capital Stockbrokers Limited | D87: 2138009KZO3MK7TV6372 | E87: 00026980363ORLO1 | F87: SBRY.L | G87: 1344 | H87: 358.6 | I87: XLON | J87: 4819.584 | K87: 20260717 08:41:26.397000 +0100s | L87: 00050320097TRLO1
A88: J SAINSBURY PLC | B88: GB00B019KW72 | C88: Shore Capital Stockbrokers Limited | D88: 2138009KZO3MK7TV6372 | E88: 00026980363ORLO1 | F88: SBRY.L | G88: 690 | H88: 358.9 | I88: XLON | J88: 2476.41 | K88: 20260717 08:51:49.795000 +0100s | L88: 00050320701TRLO1
A89: J SAINSBURY PLC | B89: GB00B019KW72 | C89: Shore Capital Stockbrokers Limited | D89: 2138009KZO3MK7TV6372 | E89: 00026980363ORLO1 | F89: SBRY.L | G89: 235 | H89: 358.9 | I89: XLON | J89: 843.415 | K89: 20260717 08:51:49.795000 +0100s | L89: 00050320702TRLO1
A90: J SAINSBURY PLC | B90: GB00B019KW72 | C90: Shore Capital Stockbrokers Limited | D90: 2138009KZO3MK7TV6372 | E90: 00026980363ORLO1 | F90: SBRY.L | G90: 3075 | H90: 359.3 | I90: XLON | J90: 11048.475 | K90: 20260717 08:52:24.969000 +0100s | L90: 00050320737TRLO1
A91: J SAINSBURY PLC | B91: GB00B019KW72 | C91: Shore Capital Stockbrokers Limited | D91: 2138009KZO3MK7TV6372 | E91: 00026980363ORLO1 | F91: SBRY.L | G91: 790 | H91: 359.3 | I91: CHIX | J91: 2838.47 | K91: 20260717 08:52:24.969000 +0100s | L91: 00050320738TRLO1
A92: J SAINSBURY PLC | B92: GB00B019KW72 | C92: Shore Capital Stockbrokers Limited | D92: 2138009KZO3MK7TV6372 | E92: 00026980363ORLO1 | F92: SBRY.L | G92: 1600 | H92: 359.3 | I92: XLON | J92: 5748.8 | K92: 20260717 08:52:24.971000 +0100s | L92: 00050320739TRLO1
A93: J SAINSBURY PLC | B93: GB00B019KW72 | C93: Shore Capital Stockbrokers Limited | D93: 2138009KZO3MK7TV6372 | E93: 00026980363ORLO1 | F93: SBRY.L | G93: 600 | H93: 359.3 | I93: TRQX | J93: 2155.8 | K93: 20260717 08:52:24.971000 +0100s | L93: 00050320740TRLO1
A94: J SAINSBURY PLC | B94: GB00B019KW72 | C94: Shore Capital Stockbrokers Limited | D94: 2138009KZO3MK7TV6372 | E94: 00026980363ORLO1 | F94: SBRY.L | G94: 953 | H94: 359.3 | I94: XLON | J94: 3424.129 | K94: 20260717 08:52:24.971000 +0100s | L94: 00050320741TRLO1
A95: J SAINSBURY PLC | B95: GB00B019KW72 | C95: Shore Capital Stockbrokers Limited | D95: 2138009KZO3MK7TV6372 | E95: 00026980363ORLO1 | F95: SBRY.L | G95: 571 | H95: 359.3 | I95: XLON | J95: 2051.603 | K95: 20260717 08:52:24.973000 +0100s | L95: 00050320742TRLO1
A96: J SAINSBURY PLC | B96: GB00B019KW72 | C96: Shore Capital Stockbrokers Limited | D96: 2138009KZO3MK7TV6372 | E96: 00026980363ORLO1 | F96: SBRY.L | G96: 211 | H96: 359.3 | I96: XLON | J96: 758.123 | K96: 20260717 08:52:24.973000 +0100s | L96: 00050320743TRLO1
A97: J SAINSBURY PLC | B97: GB00B019KW72 | C97: Shore Capital Stockbrokers Limited | D97: 2138009KZO3MK7TV6372 | E97: 00026980363ORLO1 | F97: SBRY.L | G97: 1600 | H97: 359.3 | I97: XLON | J97: 5748.8 | K97: 20260717 08:52:24.973000 +0100s | L97: 00050320744TRLO1
A98: J SAINSBURY PLC | B98: GB00B019KW72 | C98: Shore Capital Stockbrokers Limited | D98: 2138009KZO3MK7TV6372 | E98: 00026980363ORLO1 | F98: SBRY.L | G98: 719 | H98: 359.3 | I98: XLON | J98: 2583.367 | K98: 20260717 08:52:26.369000 +0100s | L98: 00050320746TRLO1
A99: J SAINSBURY PLC | B99: GB00B019KW72 | C99: Shore Capital Stockbrokers Limited | D99: 2138009KZO3MK7TV6372 | E99: 00026980363ORLO1 | F99: SBRY.L | G99: 205 | H99: 359.3 | I99: XLON | J99: 736.565 | K99: 20260717 08:52:26.369000 +0100s | L99: 00050320747TRLO1
A100: J SAINSBURY PLC | B100: GB00B019KW72 | C100: Shore Capital Stockbrokers Limited | D100: 2138009KZO3MK7TV6372 | E100: 00026980363ORLO1 | F100: SBRY.L | G100: 790 | H100: 359.2 | I100: AQXE | J100: 2837.68 | K100: 20260717 08:52:43.580000 +0100s | L100: 00050320771TRLO1
A101: J SAINSBURY PLC | B101: GB00B019KW72 | C101: Shore Capital Stockbrokers Limited | D101: 2138009KZO3MK7TV6372 | E101: 00026980363ORLO1 | F101: SBRY.L | G101: 1135 | H101: 359.2 | I101: BATE | J101: 4076.92 | K101: 20260717 08:52:43.580000 +0100s | L101: 00050320772TRLO1
A102: J SAINSBURY PLC | B102: GB00B019KW72 | C102: Shore Capital Stockbrokers Limited | D102: 2138009KZO3MK7TV6372 | E102: 00026980363ORLO1 | F102: SBRY.L | G102: 1580 | H102: 359.2 | I102: XLON | J102: 5675.36 | K102: 20260717 08:52:43.581000 +0100s | L102: 00050320773TRLO1
A103: J SAINSBURY PLC | B103: GB00B019KW72 | C103: Shore Capital Stockbrokers Limited | D103: 2138009KZO3MK7TV6372 | E103: 00026980363ORLO1 | F103: SBRY.L | G103: 1079 | H103: 359.2 | I103: BATE | J103: 3875.768 | K103: 20260717 08:57:49.037000 +0100s | L103: 00050321058TRLO1
A104: J SAINSBURY PLC | B104: GB00B019KW72 | C104: Shore Capital Stockbrokers Limited | D104: 2138009KZO3MK7TV6372 | E104: 00026980363ORLO1 | F104: SBRY.L | G104: 790 | H104: 359.2 | I104: TRQX | J104: 2837.68 | K104: 20260717 08:58:00.588000 +0100s | L104: 00050321068TRLO1
A105: J SAINSBURY PLC | B105: GB00B019KW72 | C105: Shore Capital Stockbrokers Limited | D105: 2138009KZO3MK7TV6372 | E105: 00026980363ORLO1 | F105: SBRY.L | G105: 790 | H105: 359.5 | I105: AQXE | J105: 2840.05 | K105: 20260717 09:00:41.857000 +0100s | L105: 00050321234TRLO1
A106: J SAINSBURY PLC | B106: GB00B019KW72 | C106: Shore Capital Stockbrokers Limited | D106: 2138009KZO3MK7TV6372 | E106: 00026980363ORLO1 | F106: SBRY.L | G106: 790 | H106: 359.5 | I106: BATE | J106: 2840.05 | K106: 20260717 09:00:41.857000 +0100s | L106: 00050321235TRLO1
A107: J SAINSBURY PLC | B107: GB00B019KW72 | C107: Shore Capital Stockbrokers Limited | D107: 2138009KZO3MK7TV6372 | E107: 00026980363ORLO1 | F107: SBRY.L | G107: 1391 | H107: 359.5 | I107: CHIX | J107: 5000.645 | K107: 20260717 09:00:41.857000 +0100s | L107: 00050321236TRLO1
A108: J SAINSBURY PLC | B108: GB00B019KW72 | C108: Shore Capital Stockbrokers Limited | D108: 2138009KZO3MK7TV6372 | E108: 00026980363ORLO1 | F108: SBRY.L | G108: 790 | H108: 359.5 | I108: TRQX | J108: 2840.05 | K108: 20260717 09:00:41.857000 +0100s | L108: 00050321237TRLO1
A109: J SAINSBURY PLC | B109: GB00B019KW72 | C109: Shore Capital Stockbrokers Limited | D109: 2138009KZO3MK7TV6372 | E109: 00026980363ORLO1 | F109: SBRY.L | G109: 1432 | H109: 359.5 | I109: XLON | J109: 5148.04 | K109: 20260717 09:00:41.859000 +0100s | L109: 00050321238TRLO1
A110: J SAINSBURY PLC | B110: GB00B019KW72 | C110: Shore Capital Stockbrokers Limited | D110: 2138009KZO3MK7TV6372 | E110: 00026980363ORLO1 | F110: SBRY.L | G110: 812 | H110: 359.4 | I110: BATE | J110: 2918.328 | K110: 20260717 09:01:51.558000 +0100s | L110: 00050321295TRLO1
A111: J SAINSBURY PLC | B111: GB00B019KW72 | C111: Shore Capital Stockbrokers Limited | D111: 2138009KZO3MK7TV6372 | E111: 00026980363ORLO1 | F111: SBRY.L | G111: 436 | H111: 359.4 | I111: BATE | J111: 1566.984 | K111: 20260717 09:01:51.558000 +0100s | L111: 00050321296TRLO1
A112: J SAINSBURY PLC | B112: GB00B019KW72 | C112: Shore Capital Stockbrokers Limited | D112: 2138009KZO3MK7TV6372 | E112: 00026980363ORLO1 | F112: SBRY.L | G112: 790 | H112: 359.4 | I112: TRQX | J112: 2839.26 | K112: 20260717 09:01:51.559000 +0100s | L112: 00050321297TRLO1
A113: J SAINSBURY PLC | B113: GB00B019KW72 | C113: Shore Capital Stockbrokers Limited | D113: 2138009KZO3MK7TV6372 | E113: 00026980363ORLO1 | F113: SBRY.L | G113: 1313 | H113: 359.2 | I113: CHIX | J113: 4716.296 | K113: 20260717 09:09:04.509000 +0100s | L113: 00050321685TRLO1
A114: J SAINSBURY PLC | B114: GB00B019KW72 | C114: Shore Capital Stockbrokers Limited | D114: 2138009KZO3MK7TV6372 | E114: 00026980363ORLO1 | F114: SBRY.L | G114: 882 | H114: 359.2 | I114: CHIX | J114: 3168.144 | K114: 20260717 09:09:04.530000 +0100s | L114: 00050321686TRLO1
A115: J SAINSBURY PLC | B115: GB00B019KW72 | C115: Shore Capital Stockbrokers Limited | D115: 2138009KZO3MK7TV6372 | E115: 00026980363ORLO1 | F115: SBRY.L | G115: 790 | H115: 359.2 | I115: BATE | J115: 2837.68 | K115: 20260717 09:09:04.530000 +0100s | L115: 00050321687TRLO1
A116: J SAINSBURY PLC | B116: GB00B019KW72 | C116: Shore Capital Stockbrokers Limited | D116: 2138009KZO3MK7TV6372 | E116: 00026980363ORLO1 | F116: SBRY.L | G116: 790 | H116: 359.2 | I116: BATE | J116: 2837.68 | K116: 20260717 09:09:04.530000 +0100s | L116: 00050321688TRLO1
A117: J SAINSBURY PLC | B117: GB00B019KW72 | C117: Shore Capital Stockbrokers Limited | D117: 2138009KZO3MK7TV6372 | E117: 00026980363ORLO1 | F117: SBRY.L | G117: 908 | H117: 359.2 | I117: AQXE | J117: 3261.536 | K117: 20260717 09:09:04.530000 +0100s | L117: 00050321689TRLO1
A118: J SAINSBURY PLC | B118: GB00B019KW72 | C118: Shore Capital Stockbrokers Limited | D118: 2138009KZO3MK7TV6372 | E118: 00026980363ORLO1 | F118: SBRY.L | G118: 909 | H118: 359.2 | I118: BATE | J118: 3265.128 | K118: 20260717 09:09:04.530000 +0100s | L118: 00050321690TRLO1
A119: J SAINSBURY PLC | B119: GB00B019KW72 | C119: Shore Capital Stockbrokers Limited | D119: 2138009KZO3MK7TV6372 | E119: 00026980363ORLO1 | F119: SBRY.L | G119: 790 | H119: 359.2 | I119: TRQX | J119: 2837.68 | K119: 20260717 09:09:04.530000 +0100s | L119: 00050321691TRLO1
A120: J SAINSBURY PLC | B120: GB00B019KW72 | C120: Shore Capital Stockbrokers Limited | D120: 2138009KZO3MK7TV6372 | E120: 00026980363ORLO1 | F120: SBRY.L | G120: 790 | H120: 359.2 | I120: TRQX | J120: 2837.68 | K120: 20260717 09:09:04.530000 +0100s | L120: 00050321692TRLO1
A121: J SAINSBURY PLC | B121: GB00B019KW72 | C121: Shore Capital Stockbrokers Limited | D121: 2138009KZO3MK7TV6372 | E121: 00026980363ORLO1 | F121: SBRY.L | G121: 945 | H121: 359.1 | I121: CHIX | J121: 3393.495 | K121: 20260717 09:09:43.161000 +0100s | L121: 00050321723TRLO1
A122: J SAINSBURY PLC | B122: GB00B019KW72 | C122: Shore Capital Stockbrokers Limited | D122: 2138009KZO3MK7TV6372 | E122: 00026980363ORLO1 | F122: SBRY.L | G122: 940 | H122: 359 | I122: BATE | J122: 3374.6 | K122: 20260717 09:10:03.834000 +0100s | L122: 00050321759TRLO1
A123: J SAINSBURY PLC | B123: GB00B019KW72 | C123: Shore Capital Stockbrokers Limited | D123: 2138009KZO3MK7TV6372 | E123: 00026980363ORLO1 | F123: SBRY.L | G123: 790 | H123: 359 | I123: CHIX | J123: 2836.1 | K123: 20260717 09:10:03.834000 +0100s | L123: 00050321760TRLO1
A124: J SAINSBURY PLC | B124: GB00B019KW72 | C124: Shore Capital Stockbrokers Limited | D124: 2138009KZO3MK7TV6372 | E124: 00026980363ORLO1 | F124: SBRY.L | G124: 225 | H124: 359.1 | I124: XLON | J124: 807.975 | K124: 20260717 09:13:55.624000 +0100s | L124: 00050321895TRLO1
A125: J SAINSBURY PLC | B125: GB00B019KW72 | C125: Shore Capital Stockbrokers Limited | D125: 2138009KZO3MK7TV6372 | E125: 00026980363ORLO1 | F125: SBRY.L | G125: 217 | H125: 359.2 | I125: XLON | J125: 779.464 | K125: 20260717 09:14:35.592000 +0100s | L125: 00050321930TRLO1
A126: J SAINSBURY PLC | B126: GB00B019KW72 | C126: Shore Capital Stockbrokers Limited | D126: 2138009KZO3MK7TV6372 | E126: 00026980363ORLO1 | F126: SBRY.L | G126: 1136 | H126: 359.3 | I126: CHIX | J126: 4081.648 | K126: 20260717 09:16:33.909000 +0100s | L126: 00050322021TRLO1
A127: J SAINSBURY PLC | B127: GB00B019KW72 | C127: Shore Capital Stockbrokers Limited | D127: 2138009KZO3MK7TV6372 | E127: 00026980363ORLO1 | F127: SBRY.L | G127: 400 | H127: 359.3 | I127: BATE | J127: 1437.2 | K127: 20260717 09:16:33.918000 +0100s | L127: 00050322022TRLO1
A128: J SAINSBURY PLC | B128: GB00B019KW72 | C128: Shore Capital Stockbrokers Limited | D128: 2138009KZO3MK7TV6372 | E128: 00026980363ORLO1 | F128: SBRY.L | G128: 790 | H128: 359.3 | I128: TRQX | J128: 2838.47 | K128: 20260717 09:17:06.851000 +0100s | L128: 00050322060TRLO1
A129: J SAINSBURY PLC | B129: GB00B019KW72 | C129: Shore Capital Stockbrokers Limited | D129: 2138009KZO3MK7TV6372 | E129: 00026980363ORLO1 | F129: SBRY.L | G129: 390 | H129: 359.3 | I129: BATE | J129: 1401.27 | K129: 20260717 09:17:06.851000 +0100s | L129: 00050322061TRLO1
A130: J SAINSBURY PLC | B130: GB00B019KW72 | C130: Shore Capital Stockbrokers Limited | D130: 2138009KZO3MK7TV6372 | E130: 00026980363ORLO1 | F130: SBRY.L | G130: 565 | H130: 359.3 | I130: CHIX | J130: 2030.045 | K130: 20260717 09:17:06.851000 +0100s | L130: 00050322062TRLO1
A131: J SAINSBURY PLC | B131: GB00B019KW72 | C131: Shore Capital Stockbrokers Limited | D131: 2138009KZO3MK7TV6372 | E131: 00026980363ORLO1 | F131: SBRY.L | G131: 550 | H131: 359.3 | I131: TRQX | J131: 1976.15 | K131: 20260717 09:17:06.854000 +0100s | L131: 00050322063TRLO1
A132: J SAINSBURY PLC | B132: GB00B019KW72 | C132: Shore Capital Stockbrokers Limited | D132: 2138009KZO3MK7TV6372 | E132: 00026980363ORLO1 | F132: SBRY.L | G132: 761 | H132: 359.3 | I132: XLON | J132: 2734.273 | K132: 20260717 09:17:06.861000 +0100s | L132: 00050322064TRLO1
A133: J SAINSBURY PLC | B133: GB00B019KW72 | C133: Shore Capital Stockbrokers Limited | D133: 2138009KZO3MK7TV6372 | E133: 00026980363ORLO1 | F133: SBRY.L | G133: 726 | H133: 359.3 | I133: CHIX | J133: 2608.518 | K133: 20260717 09:17:07.697000 +0100s | L133: 00050322065TRLO1
A134: J SAINSBURY PLC | B134: GB00B019KW72 | C134: Shore Capital Stockbrokers Limited | D134: 2138009KZO3MK7TV6372 | E134: 00026980363ORLO1 | F134: SBRY.L | G134: 29 | H134: 359.3 | I134: XLON | J134: 104.197 | K134: 20260717 09:17:58.767000 +0100s | L134: 00050322097TRLO1
A135: J SAINSBURY PLC | B135: GB00B019KW72 | C135: Shore Capital Stockbrokers Limited | D135: 2138009KZO3MK7TV6372 | E135: 00026980363ORLO1 | F135: SBRY.L | G135: 34 | H135: 359.3 | I135: CHIX | J135: 122.162 | K135: 20260717 09:17:58.767000 +0100s | L135: 00050322098TRLO1
A136: J SAINSBURY PLC | B136: GB00B019KW72 | C136: Shore Capital Stockbrokers Limited | D136: 2138009KZO3MK7TV6372 | E136: 00026980363ORLO1 | F136: SBRY.L | G136: 314 | H136: 359.3 | I136: CHIX | J136: 1128.202 | K136: 20260717 09:17:58.767000 +0100s | L136: 00050322099TRLO1
A137: J SAINSBURY PLC | B137: GB00B019KW72 | C137: Shore Capital Stockbrokers Limited | D137: 2138009KZO3MK7TV6372 | E137: 00026980363ORLO1 | F137: SBRY.L | G137: 790 | H137: 359.2 | I137: AQXE | J137: 2837.68 | K137: 20260717 09:18:36.815000 +0100s | L137: 00050322132TRLO1
A138: J SAINSBURY PLC | B138: GB00B019KW72 | C138: Shore Capital Stockbrokers Limited | D138: 2138009KZO3MK7TV6372 | E138: 00026980363ORLO1 | F138: SBRY.L | G138: 2042 | H138: 359.2 | I138: CHIX | J138: 7334.864 | K138: 20260717 09:18:36.815000 +0100s | L138: 00050322133TRLO1
A139: J SAINSBURY PLC | B139: GB00B019KW72 | C139: Shore Capital Stockbrokers Limited | D139: 2138009KZO3MK7TV6372 | E139: 00026980363ORLO1 | F139: SBRY.L | G139: 927 | H139: 359.1 | I139: BATE | J139: 3328.857 | K139: 20260717 09:18:37.919000 +0100s | L139: 00050322134TRLO1
A140: J SAINSBURY PLC | B140: GB00B019KW72 | C140: Shore Capital Stockbrokers Limited | D140: 2138009KZO3MK7TV6372 | E140: 00026980363ORLO1 | F140: SBRY.L | G140: 790 | H140: 359.1 | I140: TRQX | J140: 2836.89 | K140: 20260717 09:18:37.919000 +0100s | L140: 00050322135TRLO1
A141: J SAINSBURY PLC | B141: GB00B019KW72 | C141: Shore Capital Stockbrokers Limited | D141: 2138009KZO3MK7TV6372 | E141: 00026980363ORLO1 | F141: SBRY.L | G141: 1043 | H141: 359.4 | I141: BATE | J141: 3748.542 | K141: 20260717 09:28:09.043000 +0100s | L141: 00050322510TRLO1
A142: J SAINSBURY PLC | B142: GB00B019KW72 | C142: Shore Capital Stockbrokers Limited | D142: 2138009KZO3MK7TV6372 | E142: 00026980363ORLO1 | F142: SBRY.L | G142: 790 | H142: 359.4 | I142: TRQX | J142: 2839.26 | K142: 20260717 09:28:09.043000 +0100s | L142: 00050322511TRLO1
A143: J SAINSBURY PLC | B143: GB00B019KW72 | C143: Shore Capital Stockbrokers Limited | D143: 2138009KZO3MK7TV6372 | E143: 00026980363ORLO1 | F143: SBRY.L | G143: 1020 | H143: 359.5 | I143: CHIX | J143: 3666.9 | K143: 20260717 09:30:47.173000 +0100s | L143: 00050322613TRLO1
A144: J SAINSBURY PLC | B144: GB00B019KW72 | C144: Shore Capital Stockbrokers Limited | D144: 2138009KZO3MK7TV6372 | E144: 00026980363ORLO1 | F144: SBRY.L | G144: 790 | H144: 359.5 | I144: TRQX | J144: 2840.05 | K144: 20260717 09:32:04.033000 +0100s | L144: 00050322649TRLO1
A145: J SAINSBURY PLC | B145: GB00B019KW72 | C145: Shore Capital Stockbrokers Limited | D145: 2138009KZO3MK7TV6372 | E145: 00026980363ORLO1 | F145: SBRY.L | G145: 146 | H145: 359.5 | I145: XLON | J145: 524.87 | K145: 20260717 09:34:00.836000 +0100s | L145: 00050322765TRLO1
A146: J SAINSBURY PLC | B146: GB00B019KW72 | C146: Shore Capital Stockbrokers Limited | D146: 2138009KZO3MK7TV6372 | E146: 00026980363ORLO1 | F146: SBRY.L | G146: 109 | H146: 359.5 | I146: XLON | J146: 391.855 | K146: 20260717 09:34:00.836000 +0100s | L146: 00050322766TRLO1
A147: J SAINSBURY PLC | B147: GB00B019KW72 | C147: Shore Capital Stockbrokers Limited | D147: 2138009KZO3MK7TV6372 | E147: 00026980363ORLO1 | F147: SBRY.L | G147: 304 | H147: 359.5 | I147: XLON | J147: 1092.88 | K147: 20260717 09:34:00.836000 +0100s | L147: 00050322767TRLO1
A148: J SAINSBURY PLC | B148: GB00B019KW72 | C148: Shore Capital Stockbrokers Limited | D148: 2138009KZO3MK7TV6372 | E148: 00026980363ORLO1 | F148: SBRY.L | G148: 366 | H148: 359.5 | I148: XLON | J148: 1315.77 | K148: 20260717 09:34:00.836000 +0100s | L148: 00050322768TRLO1
A149: J SAINSBURY PLC | B149: GB00B019KW72 | C149: Shore Capital Stockbrokers Limited | D149: 2138009KZO3MK7TV6372 | E149: 00026980363ORLO1 | F149: SBRY.L | G149: 790 | H149: 359.3 | I149: AQXE | J149: 2838.47 | K149: 20260717 09:34:33.657000 +0100s | L149: 00050322777TRLO1
A150: J SAINSBURY PLC | B150: GB00B019KW72 | C150: Shore Capital Stockbrokers Limited | D150: 2138009KZO3MK7TV6372 | E150: 00026980363ORLO1 | F150: SBRY.L | G150: 790 | H150: 359.3 | I150: BATE | J150: 2838.47 | K150: 20260717 09:34:33.657000 +0100s | L150: 00050322778TRLO1
A151: J SAINSBURY PLC | B151: GB00B019KW72 | C151: Shore Capital Stockbrokers Limited | D151: 2138009KZO3MK7TV6372 | E151: 00026980363ORLO1 | F151: SBRY.L | G151: 790 | H151: 359.3 | I151: AQXE | J151: 2838.47 | K151: 20260717 09:34:33.657000 +0100s | L151: 00050322779TRLO1
A152: J SAINSBURY PLC | B152: GB00B019KW72 | C152: Shore Capital Stockbrokers Limited | D152: 2138009KZO3MK7TV6372 | E152: 00026980363ORLO1 | F152: SBRY.L | G152: 1631 | H152: 359.3 | I152: BATE | J152: 5860.183 | K152: 20260717 09:34:33.657000 +0100s | L152: 00050322780TRLO1
A153: J SAINSBURY PLC | B153: GB00B019KW72 | C153: Shore Capital Stockbrokers Limited | D153: 2138009KZO3MK7TV6372 | E153: 00026980363ORLO1 | F153: SBRY.L | G153: 899 | H153: 359.3 | I153: XLON | J153: 3230.107 | K153: 20260717 09:34:33.657000 +0100s | L153: 00050322782TRLO1
A154: J SAINSBURY PLC | B154: GB00B019KW72 | C154: Shore Capital Stockbrokers Limited | D154: 2138009KZO3MK7TV6372 | E154: 00026980363ORLO1 | F154: SBRY.L | G154: 1045 | H154: 359.3 | I154: TRQX | J154: 3754.685 | K154: 20260717 09:34:33.657000 +0100s | L154: 00050322783TRLO1
A155: J SAINSBURY PLC | B155: GB00B019KW72 | C155: Shore Capital Stockbrokers Limited | D155: 2138009KZO3MK7TV6372 | E155: 00026980363ORLO1 | F155: SBRY.L | G155: 790 | H155: 359.3 | I155: TRQX | J155: 2838.47 | K155: 20260717 09:34:33.657000 +0100s | L155: 00050322784TRLO1
A156: J SAINSBURY PLC | B156: GB00B019KW72 | C156: Shore Capital Stockbrokers Limited | D156: 2138009KZO3MK7TV6372 | E156: 00026980363ORLO1 | F156: SBRY.L | G156: 1332 | H156: 359.3 | I156: XLON | J156: 4785.876 | K156: 20260717 09:34:33.661000 +0100s | L156: 00050322785TRLO1
A157: J SAINSBURY PLC | B157: GB00B019KW72 | C157: Shore Capital Stockbrokers Limited | D157: 2138009KZO3MK7TV6372 | E157: 00026980363ORLO1 | F157: SBRY.L | G157: 48 | H157: 359.2 | I157: TRQX | J157: 172.416 | K157: 20260717 09:35:35.883000 +0100s | L157: 00050322829TRLO1
A158: J SAINSBURY PLC | B158: GB00B019KW72 | C158: Shore Capital Stockbrokers Limited | D158: 2138009KZO3MK7TV6372 | E158: 00026980363ORLO1 | F158: SBRY.L | G158: 925 | H158: 359.2 | I158: CHIX | J158: 3322.6 | K158: 20260717 09:35:35.884000 +0100s | L158: 00050322830TRLO1
A159: J SAINSBURY PLC | B159: GB00B019KW72 | C159: Shore Capital Stockbrokers Limited | D159: 2138009KZO3MK7TV6372 | E159: 00026980363ORLO1 | F159: SBRY.L | G159: 48 | H159: 359.2 | I159: TRQX | J159: 172.416 | K159: 20260717 09:35:35.883000 +0100s | L159: 00050322831TRLO1
A160: J SAINSBURY PLC | B160: GB00B019KW72 | C160: Shore Capital Stockbrokers Limited | D160: 2138009KZO3MK7TV6372 | E160: 00026980363ORLO1 | F160: SBRY.L | G160: 803 | H160: 359.2 | I160: TRQX | J160: 2884.376 | K160: 20260717 09:35:35.884000 +0100s | L160: 00050322832TRLO1
A161: J SAINSBURY PLC | B161: GB00B019KW72 | C161: Shore Capital Stockbrokers Limited | D161: 2138009KZO3MK7TV6372 | E161: 00026980363ORLO1 | F161: SBRY.L | G161: 790 | H161: 359.2 | I161: BATE | J161: 2837.68 | K161: 20260717 09:35:35.884000 +0100s | L161: 00050322833TRLO1
A162: J SAINSBURY PLC | B162: GB00B019KW72 | C162: Shore Capital Stockbrokers Limited | D162: 2138009KZO3MK7TV6372 | E162: 00026980363ORLO1 | F162: SBRY.L | G162: 1561 | H162: 359.2 | I162: AQXE | J162: 5607.112 | K162: 20260717 09:35:35.884000 +0100s | L162: 00050322834TRLO1
A163: J SAINSBURY PLC | B163: GB00B019KW72 | C163: Shore Capital Stockbrokers Limited | D163: 2138009KZO3MK7TV6372 | E163: 00026980363ORLO1 | F163: SBRY.L | G163: 790 | H163: 359 | I163: TRQX | J163: 2836.1 | K163: 20260717 09:35:44.703000 +0100s | L163: 00050322841TRLO1
A164: J SAINSBURY PLC | B164: GB00B019KW72 | C164: Shore Capital Stockbrokers Limited | D164: 2138009KZO3MK7TV6372 | E164: 00026980363ORLO1 | F164: SBRY.L | G164: 1236 | H164: 359 | I164: CHIX | J164: 4437.24 | K164: 20260717 09:35:44.703000 +0100s | L164: 00050322842TRLO1
A165: J SAINSBURY PLC | B165: GB00B019KW72 | C165: Shore Capital Stockbrokers Limited | D165: 2138009KZO3MK7TV6372 | E165: 00026980363ORLO1 | F165: SBRY.L | G165: 1701 | H165: 359 | I165: BATE | J165: 6106.59 | K165: 20260717 09:43:25.657000 +0100s | L165: 00050323284TRLO1
A166: J SAINSBURY PLC | B166: GB00B019KW72 | C166: Shore Capital Stockbrokers Limited | D166: 2138009KZO3MK7TV6372 | E166: 00026980363ORLO1 | F166: SBRY.L | G166: 1580 | H166: 359 | I166: TRQX | J166: 5672.2 | K166: 20260717 09:43:25.657000 +0100s | L166: 00050323285TRLO1
A167: J SAINSBURY PLC | B167: GB00B019KW72 | C167: Shore Capital Stockbrokers Limited | D167: 2138009KZO3MK7TV6372 | E167: 00026980363ORLO1 | F167: SBRY.L | G167: 790 | H167: 359 | I167: AQXE | J167: 2836.1 | K167: 20260717 09:43:25.657000 +0100s | L167: 00050323286TRLO1
A168: J SAINSBURY PLC | B168: GB00B019KW72 | C168: Shore Capital Stockbrokers Limited | D168: 2138009KZO3MK7TV6372 | E168: 00026980363ORLO1 | F168: SBRY.L | G168: 665 | H168: 359 | I168: XLON | J168: 2387.35 | K168: 20260717 09:43:25.658000 +0100s | L168: 00050323287TRLO1
A169: J SAINSBURY PLC | B169: GB00B019KW72 | C169: Shore Capital Stockbrokers Limited | D169: 2138009KZO3MK7TV6372 | E169: 00026980363ORLO1 | F169: SBRY.L | G169: 1542 | H169: 358.9 | I169: CHIX | J169: 5534.238 | K169: 20260717 09:48:35.572000 +0100s | L169: 00050323473TRLO1
A170: J SAINSBURY PLC | B170: GB00B019KW72 | C170: Shore Capital Stockbrokers Limited | D170: 2138009KZO3MK7TV6372 | E170: 00026980363ORLO1 | F170: SBRY.L | G170: 868 | H170: 358.8 | I170: CHIX | J170: 3114.384 | K170: 20260717 09:52:10.389000 +0100s | L170: 00050323641TRLO1
A171: J SAINSBURY PLC | B171: GB00B019KW72 | C171: Shore Capital Stockbrokers Limited | D171: 2138009KZO3MK7TV6372 | E171: 00026980363ORLO1 | F171: SBRY.L | G171: 1046 | H171: 358.8 | I171: CHIX | J171: 3753.048 | K171: 20260717 09:52:10.389000 +0100s | L171: 00050323642TRLO1
A172: J SAINSBURY PLC | B172: GB00B019KW72 | C172: Shore Capital Stockbrokers Limited | D172: 2138009KZO3MK7TV6372 | E172: 00026980363ORLO1 | F172: SBRY.L | G172: 790 | H172: 358.8 | I172: BATE | J172: 2834.52 | K172: 20260717 09:52:10.389000 +0100s | L172: 00050323643TRLO1
A173: J SAINSBURY PLC | B173: GB00B019KW72 | C173: Shore Capital Stockbrokers Limited | D173: 2138009KZO3MK7TV6372 | E173: 00026980363ORLO1 | F173: SBRY.L | G173: 790 | H173: 358.8 | I173: TRQX | J173: 2834.52 | K173: 20260717 09:52:10.389000 +0100s | L173: 00050323644TRLO1
A174: J SAINSBURY PLC | B174: GB00B019KW72 | C174: Shore Capital Stockbrokers Limited | D174: 2138009KZO3MK7TV6372 | E174: 00026980363ORLO1 | F174: SBRY.L | G174: 1084 | H174: 358.7 | I174: BATE | J174: 3888.308 | K174: 20260717 09:52:13.049000 +0100s | L174: 00050323646TRLO1
A175: J SAINSBURY PLC | B175: GB00B019KW72 | C175: Shore Capital Stockbrokers Limited | D175: 2138009KZO3MK7TV6372 | E175: 00026980363ORLO1 | F175: SBRY.L | G175: 790 | H175: 358.7 | I175: TRQX | J175: 2833.73 | K175: 20260717 09:52:13.049000 +0100s | L175: 00050323647TRLO1
A176: J SAINSBURY PLC | B176: GB00B019KW72 | C176: Shore Capital Stockbrokers Limited | D176: 2138009KZO3MK7TV6372 | E176: 00026980363ORLO1 | F176: SBRY.L | G176: 887 | H176: 358.7 | I176: AQXE | J176: 3181.669 | K176: 20260717 09:52:13.049000 +0100s | L176: 00050323648TRLO1
A177: J SAINSBURY PLC | B177: GB00B019KW72 | C177: Shore Capital Stockbrokers Limited | D177: 2138009KZO3MK7TV6372 | E177: 00026980363ORLO1 | F177: SBRY.L | G177: 790 | H177: 358.7 | I177: TRQX | J177: 2833.73 | K177: 20260717 09:52:13.049000 +0100s | L177: 00050323649TRLO1
A178: J SAINSBURY PLC | B178: GB00B019KW72 | C178: Shore Capital Stockbrokers Limited | D178: 2138009KZO3MK7TV6372 | E178: 00026980363ORLO1 | F178: SBRY.L | G178: 790 | H178: 358.6 | I178: BATE | J178: 2832.94 | K178: 20260717 09:53:16.252000 +0100s | L178: 00050323670TRLO1
A179: J SAINSBURY PLC | B179: GB00B019KW72 | C179: Shore Capital Stockbrokers Limited | D179: 2138009KZO3MK7TV6372 | E179: 00026980363ORLO1 | F179: SBRY.L | G179: 886 | H179: 358.6 | I179: CHIX | J179: 3177.196 | K179: 20260717 09:53:16.252000 +0100s | L179: 00050323671TRLO1
A180: J SAINSBURY PLC | B180: GB00B019KW72 | C180: Shore Capital Stockbrokers Limited | D180: 2138009KZO3MK7TV6372 | E180: 00026980363ORLO1 | F180: SBRY.L | G180: 1 | H180: 358.5 | I180: CHIX | J180: 3.585 | K180: 20260717 09:53:57.199000 +0100s | L180: 00050323686TRLO1
A181: J SAINSBURY PLC | B181: GB00B019KW72 | C181: Shore Capital Stockbrokers Limited | D181: 2138009KZO3MK7TV6372 | E181: 00026980363ORLO1 | F181: SBRY.L | G181: 790 | H181: 358.5 | I181: BATE | J181: 2832.15 | K181: 20260717 09:54:02.967000 +0100s | L181: 00050323687TRLO1
A182: J SAINSBURY PLC | B182: GB00B019KW72 | C182: Shore Capital Stockbrokers Limited | D182: 2138009KZO3MK7TV6372 | E182: 00026980363ORLO1 | F182: SBRY.L | G182: 1278 | H182: 358.5 | I182: CHIX | J182: 4581.63 | K182: 20260717 09:54:02.967000 +0100s | L182: 00050323688TRLO1
A183: J SAINSBURY PLC | B183: GB00B019KW72 | C183: Shore Capital Stockbrokers Limited | D183: 2138009KZO3MK7TV6372 | E183: 00026980363ORLO1 | F183: SBRY.L | G183: 327 | H183: 358.6 | I183: BATE | J183: 1172.622 | K183: 20260717 09:57:13.642000 +0100s | L183: 00050323768TRLO1
A184: J SAINSBURY PLC | B184: GB00B019KW72 | C184: Shore Capital Stockbrokers Limited | D184: 2138009KZO3MK7TV6372 | E184: 00026980363ORLO1 | F184: SBRY.L | G184: 1253 | H184: 358.6 | I184: BATE | J184: 4493.258 | K184: 20260717 09:57:13.903000 +0100s | L184: 00050323769TRLO1
A185: J SAINSBURY PLC | B185: GB00B019KW72 | C185: Shore Capital Stockbrokers Limited | D185: 2138009KZO3MK7TV6372 | E185: 00026980363ORLO1 | F185: SBRY.L | G185: 1002 | H185: 358.6 | I185: CHIX | J185: 3593.172 | K185: 20260717 09:57:13.903000 +0100s | L185: 00050323770TRLO1
A186: J SAINSBURY PLC | B186: GB00B019KW72 | C186: Shore Capital Stockbrokers Limited | D186: 2138009KZO3MK7TV6372 | E186: 00026980363ORLO1 | F186: SBRY.L | G186: 790 | H186: 358.6 | I186: TRQX | J186: 2832.94 | K186: 20260717 09:57:13.903000 +0100s | L186: 00050323771TRLO1
A187: J SAINSBURY PLC | B187: GB00B019KW72 | C187: Shore Capital Stockbrokers Limited | D187: 2138009KZO3MK7TV6372 | E187: 00026980363ORLO1 | F187: SBRY.L | G187: 491 | H187: 358.6 | I187: AQXE | J187: 1760.726 | K187: 20260717 09:57:13.905000 +0100s | L187: 00050323772TRLO1
A188: J SAINSBURY PLC | B188: GB00B019KW72 | C188: Shore Capital Stockbrokers Limited | D188: 2138009KZO3MK7TV6372 | E188: 00026980363ORLO1 | F188: SBRY.L | G188: 109 | H188: 358.6 | I188: AQXE | J188: 390.874 | K188: 20260717 09:57:13.905000 +0100s | L188: 00050323773TRLO1
A189: J SAINSBURY PLC | B189: GB00B019KW72 | C189: Shore Capital Stockbrokers Limited | D189: 2138009KZO3MK7TV6372 | E189: 00026980363ORLO1 | F189: SBRY.L | G189: 1580 | H189: 358.2 | I189: CHIX | J189: 5659.56 | K189: 20260717 10:02:55.053000 +0100s | L189: 00050323924TRLO1
A190: J SAINSBURY PLC | B190: GB00B019KW72 | C190: Shore Capital Stockbrokers Limited | D190: 2138009KZO3MK7TV6372 | E190: 00026980363ORLO1 | F190: SBRY.L | G190: 790 | H190: 358.2 | I190: BATE | J190: 2829.78 | K190: 20260717 10:02:55.053000 +0100s | L190: 00050323925TRLO1
A191: J SAINSBURY PLC | B191: GB00B019KW72 | C191: Shore Capital Stockbrokers Limited | D191: 2138009KZO3MK7TV6372 | E191: 00026980363ORLO1 | F191: SBRY.L | G191: 1980 | H191: 358.2 | I191: TRQX | J191: 7092.36 | K191: 20260717 10:02:55.053000 +0100s | L191: 00050323926TRLO1
A192: J SAINSBURY PLC | B192: GB00B019KW72 | C192: Shore Capital Stockbrokers Limited | D192: 2138009KZO3MK7TV6372 | E192: 00026980363ORLO1 | F192: SBRY.L | G192: 64 | H192: 358.2 | I192: XLON | J192: 229.248 | K192: 20260717 10:02:55.054000 +0100s | L192: 00050323927TRLO1
A193: J SAINSBURY PLC | B193: GB00B019KW72 | C193: Shore Capital Stockbrokers Limited | D193: 2138009KZO3MK7TV6372 | E193: 00026980363ORLO1 | F193: SBRY.L | G193: 56 | H193: 358.1 | I193: XLON | J193: 200.536 | K193: 20260717 10:07:02.586000 +0100s | L193: 00050324070TRLO1
A194: J SAINSBURY PLC | B194: GB00B019KW72 | C194: Shore Capital Stockbrokers Limited | D194: 2138009KZO3MK7TV6372 | E194: 00026980363ORLO1 | F194: SBRY.L | G194: 75 | H194: 358.1 | I194: XLON | J194: 268.575 | K194: 20260717 10:07:02.586000 +0100s | L194: 00050324071TRLO1
A195: J SAINSBURY PLC | B195: GB00B019KW72 | C195: Shore Capital Stockbrokers Limited | D195: 2138009KZO3MK7TV6372 | E195: 00026980363ORLO1 | F195: SBRY.L | G195: 1580 | H195: 358.1 | I195: TRQX | J195: 5657.98 | K195: 20260717 10:07:02.586000 +0100s | L195: 00050324072TRLO1
A196: J SAINSBURY PLC | B196: GB00B019KW72 | C196: Shore Capital Stockbrokers Limited | D196: 2138009KZO3MK7TV6372 | E196: 00026980363ORLO1 | F196: SBRY.L | G196: 1404 | H196: 358.1 | I196: XLON | J196: 5027.724 | K196: 20260717 10:07:02.586000 +0100s | L196: 00050324073TRLO1
A197: J SAINSBURY PLC | B197: GB00B019KW72 | C197: Shore Capital Stockbrokers Limited | D197: 2138009KZO3MK7TV6372 | E197: 00026980363ORLO1 | F197: SBRY.L | G197: 790 | H197: 358.1 | I197: BATE | J197: 2828.99 | K197: 20260717 10:07:02.586000 +0100s | L197: 00050324074TRLO1
A198: J SAINSBURY PLC | B198: GB00B019KW72 | C198: Shore Capital Stockbrokers Limited | D198: 2138009KZO3MK7TV6372 | E198: 00026984650ORLO1 | F198: SBRY.L | G198: 182 | H198: 358.3 | I198: XLON | J198: 652.106 | K198: 20260717 10:17:21.247000 +0100s | L198: 00050324284TRLO1
A199: J SAINSBURY PLC | B199: GB00B019KW72 | C199: Shore Capital Stockbrokers Limited | D199: 2138009KZO3MK7TV6372 | E199: 00026984650ORLO1 | F199: SBRY.L | G199: 1849 | H199: 358 | I199: TRQX | J199: 6619.42 | K199: 20260717 10:17:36.897000 +0100s | L199: 00050324288TRLO1
A200: J SAINSBURY PLC | B200: GB00B019KW72 | C200: Shore Capital Stockbrokers Limited | D200: 2138009KZO3MK7TV6372 | E200: 00026984650ORLO1 | F200: SBRY.L | G200: 790 | H200: 358 | I200: BATE | J200: 2828.2 | K200: 20260717 10:17:36.897000 +0100s | L200: 00050324289TRLO1
... 4242 more rows
